[Event "SixDays Budapest January IM-A 2025"]
[Site "Budapest"]
[Date "2025.01.26"]
[Round "1.1"]
[White "Varga, Zoltan"]
[Black "Karacsonyi, Kata"]
[Result "1-0"]
[Annotator "TA"]
[ECO "B54"]
[WhiteElo "2304"]
[BlackElo "2183"]
[PlyCount "93"]
[EventDate "2025.01.24"]
[EventType "tourn"]
[EventCountry "HUN"]
[SourceTitle "playchess.com"]
[Source "ChessBase"]
[SourceQuality "1"]
[TimeControl "5400+30"]

{[%evp 11,93,18,32,-20,-29,-33,-23,-34,-3,0,26,28,31,40,42,14,39,45,79,63,133,135,135,110,113,114,120,123,134,128,127,131,143,145,142,137,145,120,172,143,143,139,141,143,141,135,128,138,155,146,202,191,192,188,247,250,311,300,367,359,521,516,581,581,580,579,637,654,683,712,803,754,774,777,1133,711,889,907,1057,847,29980,29980,2441,1712]} 1. e4 {[%emt 0:00:04]} c5 {[%emt 0:00:09]} 2. Nf3 {[%emt 0:00:05]} d6 {[%emt 0:00:16]} 3. d4 {[%emt 0:00:21]} cxd4 {[%emt 0:00:09]} 4. Nxd4 {[%emt 0:02:24]} Nf6 {[%emt 0:00:12]} 5. f3 {[%emt 0:00:12]} e5 {[%emt 0:00:21]} 6. Nb3 {[%emt 0:00:06]} d5 {[%emt 0:00:19]} 7. exd5 {[%emt 0:01:27] B55: Sicilian: 2...d6 3 d4 cxd4 4 Nxd4 Nf6 5 f3.} (7. Bg5 $1 $14) 7... Nxd5 $11 {[%emt 0:09:33] now scores much better than the old 7...Qxd5.} 8. Bd2 {[%emt 0:00:28]} Nc6 {[%emt 0:03:58]} 9. Bb5 {[%emt 0:03:27] Black has an edge.} Qb6 $146 {[%emt 0:10:25]} (9... Be7 10. Nc3 O-O 11. Qe2 Nd4 12. Nxd4 exd4 13. Nxd5 Qxd5 14. O-O Bf5 15. Bd3 Bf6 16. Rfe1 h5 17. a3 Rac8 18. Rad1 Rc6 19. Bf4 {½-½ Bokros,A (2409)-Mesic,I (2276) SRB-chT2 Vojvodina 2024 (6.1)}) 10. Qe2 {[%emt 0:02:21]} Be7 {[%emt 0:14:38]} 11. Nc3 {[%emt 0:04:48]} Nxc3 {[%emt 0:03:03]} 12. Bxc3 {[%emt 0:00:31][%cal Oc3a5] [#]} O-O {[%emt 0:04:11]} 13. O-O-O $1 {[%emt 0:00:47][%cal Ob5c6]} f6 {[%emt 0:04:56]} 14. f4 {[%emt 0:02:55]} Kh8 {[%emt 0:06:01]} 15. Bxc6 {[%emt 0:02:57] White now steadily converts the win.} (15. Kb1 $5) 15... bxc6 {[%emt 0:15:44]} ({Black should play} 15... Qxc6 $14 16. fxe5 fxe5) 16. fxe5 $16 {[%emt 0:00:56]} Ba6 {[%emt 0:04:08]} 17. Qe4 {[%emt 0:00:24]} fxe5 {[%emt 0:02:22]} 18. Qxe5 {[%emt 0:07:11][%csl Gc3][%cal Re5g7] [#]} Bf6 {[%emt 0:00:34][%cal Be7f6,Bf6c3,Bc3e5][%mdl 32]} 19. Qc5 {[%emt 0:00:07]} Qxc5 {[%emt 0:03:59]} 20. Nxc5 {[%emt 0:00:06]} Bxc3 {[%emt 0:05:59]} 21. Nxa6 {[%emt 0:10:26]} ({Don't do} 21. bxc3 Bc4 $14) 21... Be5 {[%emt 0:00:21]} 22. g3 {[%emt 0:00:20]} Rf2 {[%emt 0:03:31]} 23. Nc5 {[%emt 0:01:04]} Rg2 {[%emt 0:01:44]} 24. b3 {[%emt 0:15:14]} Rf8 {[%emt 0:02:30]} (24... Bc3 $16 25. Rd7 Re8) 25. Rd2 {[%emt 0:04:13]} Bb2+ {[%emt 0:00:47]} 26. Kd1 $1 {[%emt 0:00:05]} Rxd2+ {[%emt 0:00:36]} 27. Kxd2 {[%emt 0:00:04][%mdl 4096] Endgame KRB-KRN. White is a pawn up.} Rf2+ {[%emt 0:01:42]} 28. Kd1 {[%emt 0:00:55] Black must now prevent Nd3.} Bd4 {[%emt 0:00:51]} 29. Nd3 {[%emt 0:00:26]} Rg2 {[%emt 0:00:49]} 30. Re1 {[%emt 0:04:26][%cal Re1e8]} h6 {[%emt 0:01:04]} (30... Kg8 $16) 31. Re2 $18 {[%emt 0:00:04]} Rg1+ {[%emt 0:00:14]} 32. Kd2 {[%emt 0:00:04]} Ra1 {[%emt 0:00:25]} (32... Rf1 $142 33. c3 Bg1) 33. a4 {[%emt 0:00:08]} Kh7 {[%emt 0:00:56]} 34. Nb4 {[%emt 0:00:50]} c5 {[%emt 0:00:21]} 35. Nc6 {[%emt 0:00:03]} Bf6 {[%emt 0:00:37]} (35... Bg1 {was called for.} 36. Kc3 (36. Nxa7 c4 $18) 36... a6) 36. Kd3 {[%emt 0:01:06]} Rd1+ {[%emt 0:00:32]} 37. Kc4 {[%emt 0:00:27]} Rd7 {[%emt 0:00:31]} 38. Kxc5 {[%emt 0:00:08]} h5 {[%emt 0:00:28]} 39. b4 {[%emt 0:00:37][%cal Bb3b4,Bb4b5][%mdl 32]} h4 {[%emt 0:00:27]} 40. gxh4 {[%emt 0:00:28]} Bxh4 {[%emt 0:00:02]} 41. b5 {[%emt 0:00:10]} Rf7 {[%emt 0:00:58]} 42. c4 {[%emt 0:00:49]} Bf2+ {[%emt 0:00:29]} 43. Kb4 {[%emt 0:00:08]} g5 {[%emt 0:00:35][%cal Bg7g5,Bg5g4][%mdl 32]} 44. a5 {[%emt 0:00:45]} g4 {[%emt 0:00:32]} 45. Ne5 {[%emt 0:00:41][%csl LRf7,LRg4]} Re7 {[%emt 0:00:13]} 46. Rxf2 {[%emt 0:00:18]} Rxe5 {[%emt 0:00:06]} 47. Rf4 {[%emt 0:00:33] Weighted Error Value: White=0.15 (very precise) /Black=0.40  Mistake:       	---       	Black=5      Inaccurate:     	---       	Black=3      OK:         	White=18    	Black=13     Best:        	White=3     	Black=1      Strong:       	White=2     	---} 1-0

[Event "SixDays Budapest January IM-A 2025"]
[Site "Budapest"]
[Date "2025.01.26"]
[Round "1.2"]
[White "Kustar, Sandor"]
[Black "Golubovskis, Maksims"]
[Result "1/2-1/2"]
[Annotator "TA"]
[ECO "D37"]
[WhiteElo "2240"]
[BlackElo "2237"]
[PlyCount "159"]
[EventDate "2025.01.24"]
[EventType "tourn"]
[EventCountry "HUN"]
[SourceTitle "playchess.com"]
[Source "ChessBase"]
[SourceQuality "1"]
[TimeControl "5400+30"]

{[%evp 22,159,0,0,15,-13,-7,-5,13,11,18,18,17,0,50,56,79,76,70,68,334,186,212,207,196,202,186,128,112,85,96,93,133,129,114,136,146,25,23,22,19,21,26,-3,0,0,0,0,0,0,0,0,0,-4,0,-12,-9,-27,-6,-16,-21,-25,0,0,0,0,0,0,0,0,0,-8,-8,-8,-8,-10,0,0,0,0,0,0,0,0,0,0,0,0,0,0,0,0,0,0,0,0,0,0,0,0,0,0,0,0,0,0,0,0,0,-3,-3,-8,-3,-3,0,-16,-3,-3,0,-16,0,0,0,-8,0,-4,0,0,0,0,0,0,0,0,0,0,0,0,0,0]} 1. Nf3 {[%emt 0:00:07]} Nf6 {[%emt 0:00:10]} 2. c4 {[%emt 0:00:15]} e6 {[%emt 0:00:19]} 3. d4 {[%emt 0:00:45]} d5 {[%emt 0:00:28]} 4. Nc3 {[%emt 0:01:15]} dxc4 {[%emt 0:00:48]} 5. e3 {[%emt 0:01:03]} a6 {[%emt 0:00:23]} 6. a4 {[%emt 0:01:24]} b6 {[%emt 0:01:39]} 7. Bxc4 {[%emt 0:01:06]} Bb7 {[%emt 0:00:52]} 8. O-O {[%emt 0:01:01]} Bb4 {[%emt 0:03:51]} 9. Qe2 {[%emt 0:03:00]} Nbd7 {[%emt 0:04:29]} 10. Na2 {[%emt 0:13:04]} Bd6 {[%emt 0:01:31]} 11. Nc3 {[%emt 0:00:07]} c5 {[%emt 0:06:44]} 12. Rd1 {[%emt 0:04:55]} Qc7 {[%emt 0:03:31] D45: Semi-Slav: 5 e3.} 13. b3 {[%emt 0:02:24]} O-O {[%emt 0:03:53]} 14. h3 {[%emt 0:04:11]} Rfe8 $146 {[%emt 0:07:57]} (14... cxd4 15. exd4 Rfe8 16. Be3 Bc6 17. d5 exd5 18. Nxd5 Bxd5 19. Bxd5 Nxd5 20. Rxd5 Bc5 {½-½ Nazaretyan,T (2316)-Petrov,N (2562) Malaya Zemlya Rapid op 2021 (4)}) 15. d5 {[%emt 0:11:16]} Ne5 {[%emt 0:18:48]} 16. Nxe5 {[%emt 0:03:26]} Bxe5 {[%emt 0:01:20]} 17. Bb2 {[%emt 0:04:36]} (17. dxe6 $5 Rxe6 18. Bb2 $14 (18. Bxe6 $2 Bxc3 19. Bb2 Bxb2 $19)) 17... Kh8 {[%emt 0:06:28]} (17... Nxd5 $11 18. Nxd5 exd5 19. Bxd5 Bxb2 20. Qxb2 Rad8 21. Bxb7 Qxb7) 18. dxe6 $14 {[%emt 0:04:09]} fxe6 {[%emt 0:00:02]} 19. f4 {[%emt 0:01:38]} Bd6 {[%emt 0:00:33]} 20. Rd2 {[%emt 0:01:08]} Nd5 $2 {[%emt 0:04:25][%mdl 8192]} 21. Rad1 {[%emt 0:03:46]} (21. Nxd5 exd5 22. Bxd5 Bxf4 23. Bxb7 Qxb7 $11) (21. Ne4 $142) 21... Nxe3 $18 {[%emt 0:03:50]} 22. Rxd6 {[%emt 0:05:02]} (22. Qxe3 Bxf4 23. Qf2 Rf8 $16) 22... Nxd1 {[%emt 0:00:10]} 23. Rxd1 {[%emt 0:04:16]} Qxf4 {[%emt 0:02:07]} 24. Rd7 {[%emt 0:01:16]} (24. Bxe6 $2 Qh6 25. Rd6 Re7 $19) (24. Bc1 $18 Qh4 25. Bb2 (25. Bxe6 $2 Rad8 $19)) 24... Bc6 $16 {[%emt 0:01:01]} 25. Rd3 {[%emt 0:03:44][%cal Bd7d3,Bd3e3,Be3e4][%mdl 1056] White has strong compensation.} Rad8 {[%emt 0:07:02]} 26. Re3 $1 {[%emt 0:00:43]} (26. Bxe6 $2 Rxd3 27. Qxd3 Rxe6 $19) 26... b5 {[%emt 0:02:35]} 27. axb5 {[%emt 0:00:15]} axb5 {[%emt 0:00:02] [#]} 28. Bd3 {[%emt 0:12:46]} (28. Bxb5 Bxb5 29. Nxb5 Rd1+ 30. Qxd1 Qxe3+ 31. Kh1 Rf8 $14) (28. Bxe6 $2 b4 $19) (28. Nxb5 Rd1+ 29. Qxd1 Qxe3+ 30. Kh2 Qf2 $11) 28... e5 {[%emt 0:07:26][%cal Oe5e4] [#]} 29. Be4 {[%emt 0:02:43]} (29. Nxb5 $6 Rxd3 30. Qxd3 Bxb5 $11) ({Better is} 29. Ne4 $1 $16) 29... Bxe4 $11 {[%emt 0:01:59]} 30. Rxe4 {[%emt 0:00:04]} (30. Nxe4 Rd1+ 31. Qxd1 Qxe3+ 32. Nf2 Rf8 $19) 30... Rd2 {[%emt 0:02:41]} 31. Qe1 {[%emt 0:00:45] Dancing on a razor blade.} Qg5 {[%emt 0:00:37][%csl Gd2][%cal Rg5g2]} 32. Rg4 {[%emt 0:00:14] Successful Defense White} Qd8 {[%emt 0:00:09]} 33. Bc1 {[%emt 0:01:30]} Rd4 {[%emt 0:01:05] ...b4 is the strong threat.} 34. Be3 $1 {[%emt 0:00:58]} (34. Nxb5 $2 Rd1 35. Re4 Rxe1+ $19) 34... Rxg4 {[%emt 0:01:31]} 35. hxg4 {[%emt 0:00:03]} c4 {[%emt 0:00:34]} 36. bxc4 {[%emt 0:01:15]} bxc4 {[%emt 0:00:02]} 37. Qe2 {[%emt 0:01:04]} Qc7 {[%emt 0:01:10]} 38. Bf2 {[%emt 0:01:57] [#]} e4 $1 {[%emt 0:01:11]} 39. Qe3 {[%emt 0:01:24]} (39. Bd4 {keeps more tension.} e3 40. Qf3 Kg8 41. Ne2) 39... Qc6 {[%emt 0:00:20]} 40. Qd4 {[%emt 0:00:56]} Qe6 {[%emt 0:00:23][%cal Oe4e3]} 41. Be3 {[%emt 0:00:28]} Re7 {[%emt 0:03:13]} 42. g5 {[%emt 0:01:48] The position is equal.} Rd7 {[%emt 0:00:30]} 43. Qc5 {[%emt 0:00:17] Intending Qc8+ and mate.} Kg8 {[%emt 0:01:30]} 44. Ne2 {[%emt 0:01:18]} Rd5 {[%emt 0:01:22]} 45. Qc7 {[%emt 0:00:39][%cal Oe2f4]} Rd1+ {[%emt 0:00:15]} 46. Kf2 {[%emt 0:01:17]} Qf7+ {[%emt 0:02:00]} 47. Qxf7+ {[%emt 0:00:06]} Kxf7 {[%emt 0:00:00]} 48. Nc3 {[%emt 0:00:18][%csl LRd1,LRe4]} Rd3 {[%emt 0:00:51]} 49. Nxe4 {[%emt 0:00:08]} Kg6 {[%emt 0:00:01]} 50. g4 {[%emt 0:00:51]} Kf7 {[%emt 0:00:49]} 51. Ke2 {[%emt 0:00:14]} Rd8 {[%emt 0:00:20]} 52. Bd2 {[%emt 0:00:24]} Ke6 {[%emt 0:00:35]} 53. Bc3 {[%emt 0:00:24]} Kd5 {[%emt 0:00:09]} 54. Nd2 {[%emt 0:00:54]} Re8+ {[%emt 0:00:10]} 55. Kf3 {[%emt 0:00:15]} Re7 {[%emt 0:00:21]} 56. Kf2 {[%emt 0:00:22]} Rf7+ {[%emt 0:00:26]} 57. Ke3 {[%emt 0:00:10]} Re7+ {[%emt 0:00:03]} 58. Kf2 {[%emt 0:00:08]} Ra7 {[%emt 0:00:07]} 59. Ke3 {[%emt 0:02:04]} Ra3 {[%emt 0:00:51]} 60. Ne4 {[%emt 0:00:25]} Rb3 {[%emt 0:00:26]} 61. Kf4 {[%emt 0:00:30]} Rb1 {[%emt 0:00:41]} 62. Kf3 {[%emt 0:01:45]} (62. Bxg7 $2 {perishes.} Rf1+ 63. Ke3 Re1+ 64. Kd2 Rxe4 $19) 62... Rf1+ {[%emt 0:00:49]} 63. Ke2 {[%emt 0:00:51]} Rf7 {[%emt 0:01:13]} 64. Nf2 {[%emt 0:00:29]} Re7+ {[%emt 0:00:46]} 65. Kd2 {[%emt 0:00:02]} Kc5 {[%emt 0:00:15]} 66. Nd1 {[%emt 0:00:31]} Rd7+ {[%emt 0:00:45]} 67. Ke2 {[%emt 0:00:10]} Rd5 {[%emt 0:00:49]} 68. Bd2 {[%emt 0:00:22]} Re5+ {[%emt 0:00:26]} 69. Kf3 {[%emt 0:00:03]} Rd5 {[%emt 0:00:22]} 70. Ke2 $1 {[%emt 0:00:04]} Kd4 {[%emt 0:00:46]} 71. Be3+ {[%emt 0:00:35]} Ke5 {[%emt 0:00:01]} 72. Bd2 {[%emt 0:00:14]} (72. Nb2 $5) 72... Rb5 {[%emt 0:00:33]} 73. Ke3 {[%emt 0:00:22]} Rb1 {[%emt 0:00:16]} 74. Bc3+ {[%emt 0:00:18]} Kd5 {[%emt 0:00:29]} 75. Nf2 {[%emt 0:00:11]} g6 {[%emt 0:00:45]} 76. Ne4 {[%emt 0:02:02]} Rb3 {[%emt 0:00:52]} 77. Nf6+ {[%emt 0:00:35]} Kc5 {[%emt 0:00:16]} 78. Ne4+ {[%emt 0:00:07]} Kd5 {[%emt 0:00:21]} 79. Nf6+ {[%emt 0:00:05]} Kc5 {[%emt 0:00:05]} 80. Ne4+ {[%emt 0:00:05] Black defended with fortune.   Weighted Error Value: White=0.11 (very precise) /Black=0.13 (very precise)   Loses game:     	---       	Black=1      Mistake:       	White=3     	Black=1      Inaccurate:     	White=2     	---        OK:         	White=40    	Black=21     Best:        	---       	Black=6      Strong:       	White=3     	---} 1/2-1/2

[Event "SixDays Budapest January IM-A 2025"]
[Site "Budapest"]
[Date "2025.01.26"]
[Round "1.3"]
[White "Fodor, Balazs"]
[Black "Mauron, Pierre"]
[Result "1-0"]
[Annotator "TA"]
[ECO "D30"]
[WhiteElo "2214"]
[BlackElo "2016"]
[PlyCount "99"]
[EventDate "2025.01.24"]
[EventType "tourn"]
[EventCountry "HUN"]
[SourceTitle "playchess.com"]
[Source "ChessBase"]
[SourceQuality "1"]
[TimeControl "5400+30"]

{[%evp 12,99,12,4,10,4,14,15,15,7,25,3,6,4,12,14,75,31,35,13,19,16,35,37,34,32,44,35,41,44,39,38,45,28,44,39,31,20,21,16,48,23,68,42,135,83,163,162,150,147,140,150,160,89,190,194,185,193,200,80,204,121,125,125,136,131,116,122,119,119,151,80,150,84,318,316,319,300,433,373,658,643,623,617,749,743,1029,1027,915,871]} 1. d4 {[%emt 0:00:27]} d5 {[%emt 0:00:24]} 2. c4 {[%emt 0:00:50]} e6 {[%emt 0:00:15]} 3. Nf3 {[%emt 0:01:04]} Nf6 {[%emt 0:00:21]} 4. g3 {[%emt 0:00:26]} Bb4+ {[%emt 0:00:45]} 5. Bd2 {[%emt 0:00:20]} a5 {[%emt 0:02:07]} 6. Qc2 {[%emt 0:00:10]} O-O {[%emt 0:01:04]} 7. Bg2 {[%emt 0:00:07]} Be7 {[%emt 0:04:44]} 8. O-O {[%emt 0:01:46]} Nbd7 {[%emt 0:02:36]} 9. Bf4 {[%emt 0:01:28]} Nh5 {[%emt 0:01:59] The position is equal.} 10. Bc1 {[%emt 0:00:10]} Nhf6 {[%emt 0:00:14]} 11. Nbd2 {[%emt 0:00:16]} c5 {[%emt 0:05:38]} 12. cxd5 {[%emt 0:05:52]} exd5 {[%emt 0:04:12]} 13. Rd1 {[%emt 0:02:43]} Qb6 {[%emt 0:05:46]} (13... b6 $11) 14. e3 {[%emt 0:06:20]} Re8 {[%emt 0:06:37]} 15. b3 {[%emt 0:10:41]} cxd4 {[%emt 0:05:37]} 16. Nxd4 {[%emt 0:00:10]} Ne5 {[%emt 0:07:26]} 17. N2f3 {[%emt 0:02:57]} Nxf3+ {[%emt 0:03:03]} 18. Bxf3 {[%emt 0:00:24]} Bh3 {[%emt 0:06:09]} 19. Bb2 {[%emt 0:08:40]} Rac8 {[%emt 0:07:33]} 20. Qd3 {[%emt 0:00:21]} Bc5 {[%emt 0:02:58]} 21. Rac1 {[%emt 0:08:15]} Ne4 {[%emt 0:04:14]} 22. Qe2 {[%emt 0:05:05]} Qg6 {[%emt 0:03:48]} 23. Bg2 {[%emt 0:03:11]} Bd7 {[%emt 0:04:05]} 24. Re1 {[%emt 0:09:55]} h5 {[%emt 0:02:09][%cal Oh5h4]} 25. Nf3 {[%emt 0:03:21]} Bd6 {[%emt 0:05:56] Dodges Ne5} 26. Qd3 {[%emt 0:03:04]} Bc6 {[%emt 0:02:04]} 27. Red1 {[%emt 0:01:38]} Bb8 {[%emt 0:01:10] [#]} ({Black should try} 27... a4 $14) 28. Bh3 $1 $16 {[%emt 0:04:17][%cal Of3h4] Hoping for Nh4!} Rcd8 {[%emt 0:04:24]} (28... Rc7 $16) 29. Nh4 $18 {[%emt 0:00:08]} Qg5 {[%emt 0:02:06]} 30. f4 $36 {[%emt 0:01:18][%mdl 2048] Black is under strong pressure.} Qh6 {[%emt 0:01:23]} 31. Nf5 $1 {[%emt 0:03:27][%csl LRg7,LRh6]} Qe6 {[%emt 0:01:57]} 32. Qd4 {[%emt 0:00:09] White is more active.} (32. Nxg7 $2 Qxh3 33. Nxe8 Rxe8 $19) (32. Bxg7 $142 {Bd4 would now be deadly.} Ba7 33. Qe2 (33. Nh6+ Kxg7 34. Bxe6 fxe6 $15)) 32... Qg6 {[%emt 0:00:41]} (32... Qf6 $16) 33. Qxg7+ {[%emt 0:01:41]} Qxg7 {[%emt 0:00:06]} 34. Nxg7 {[%emt 0:01:13]} (34. Bxg7 f6 35. Kg2 Kf7 $19) 34... Ba7 {[%emt 0:01:11] [#]} 35. Nf5 {[%emt 0:04:38]} (35. Re1 $1 $18 {and White stays clearly on top.}) 35... f6 {[%emt 0:01:25]} (35... Bd7 $16 {might work better.} 36. Kg2 (36. Rxd5 $2 Bxf5 37. Rxf5 Bxe3+ 38. Kg2 Rd2+ 39. Kf3 Rxb2 $19) 36... Bxf5 37. Bxf5 Nd6) 36. Nd4 {[%emt 0:00:21]} (36. Bd4 $18 Bxd4 37. Rxd4 (37. Nxd4 Bd7 $18)) 36... Bd7 $16 {[%emt 0:00:35]} 37. Bxd7 {[%emt 0:00:36]} Rxd7 {[%emt 0:00:04]} 38. Kg2 {[%emt 0:00:26]} Kf7 {[%emt 0:00:22]} 39. Kf3 {[%emt 0:00:28]} Bxd4 {[%emt 0:01:23]} 40. Bxd4 {[%emt 0:00:29]} Re6 {[%emt 0:01:13]} 41. a4 {[%emt 0:00:55]} (41. Rc2 $142) 41... f5 {[%emt 0:00:27]} (41... Rc6 $142) 42. Rc8 {[%emt 0:00:10]} (42. Rc2 $142) 42... Nf6 $2 {[%emt 0:00:19]} (42... Rc6 $16 43. Rc1 (43. Rh8 $2 Rc2 $19) 43... Nd2+ 44. Kg2 Rxc1 45. Rxc1 Nxb3) 43. Bxf6 $18 {[%emt 0:01:20]} Kxf6 {[%emt 0:00:24][%mdl 4096] Endgame. KRR-KRR} 44. Rc5 {[%emt 0:00:18][%csl LRa5,LRd5]} b6 {[%emt 0:01:03]} (44... Rb6 $142 45. Rd3 (45. Rdxd5 Rxd5 46. Rxd5 Rxb3 $18) (45. Rxa5 Ke6 $18) 45... Rbd6 46. Rxa5 h4) 45. Rcxd5 {[%emt 0:00:02]} Rxd5 {[%emt 0:00:02]} (45... Rc7 46. h4 Rc3) 46. Rxd5 {[%emt 0:00:08] White is clearly winning.} Rc6 {[%emt 0:00:17]} 47. Rb5 {[%emt 0:00:20]} Ke6 {[%emt 0:00:12]} 48. h3 {[%emt 0:00:07][%cal Bh2h3,Bh3g4][%mdl 32]} Kf6 {[%emt 0:00:00]} 49. g4 {[%emt 0:00:13]} hxg4+ {[%emt 0:00:05]} 50. hxg4 {[%emt 0:00:03] Weighted Error Value: White=0.18 (very precise) /Black=0.41.  Loses game:     	---       	Black=1      Mistake:       	White=5     	Black=8      Inaccurate:     	White=2     	Black=2      OK:         	White=14    	Black=12     Best:        	White=2     	Black=1      Strong:       	White=1     	---} 1-0

[Event "SixDays Budapest January IM-A 2025"]
[Site "Budapest"]
[Date "2025.01.26"]
[Round "1.4"]
[White "Pribelszky, Bence Daniel"]
[Black "Kiremitciyan, Ari"]
[Result "1/2-1/2"]
[Annotator "TA"]
[ECO "B10"]
[WhiteElo "2391"]
[BlackElo "2251"]
[PlyCount "114"]
[EventDate "2025.01.24"]
[EventType "tourn"]
[EventCountry "HUN"]
[SourceTitle "playchess.com"]
[Source "ChessBase"]
[SourceQuality "1"]
[TimeControl "5400+30"]

{[%evp 9,114,8,0,0,6,15,18,19,12,10,6,0,21,9,6,3,7,0,0,0,8,7,12,7,6,4,9,0,0,0,0,0,0,0,0,0,0,0,14,16,17,21,40,20,18,18,37,0,0,0,0,0,0,0,0,0,0,0,0,0,0,0,0,0,0,0,0,0,0,0,0,0,0,0,0,0,0,0,0,0,0,0,0,0,0,0,0,0,0,0,0,0,0,0,0,0,0,0,0,0,0,0,0,0,0,0,0]} 1. e4 {[%emt 0:00:17]} c6 {[%emt 0:00:07]} 2. Nf3 {[%emt 0:00:57]} d5 {[%emt 0:00:05]} 3. d3 {[%emt 0:00:09]} dxe4 {[%emt 0:00:14]} 4. dxe4 {[%emt 0:00:06]} Qxd1+ {[%emt 0:00:07]} 5. Kxd1 {[%emt 0:00:04]} Nf6 {[%emt 0:00:18]} 6. Nbd2 {[%emt 0:00:29] B10: Caro-Kann: 2 d3 and 2 c4.} g6 {[%emt 0:00:20]} 7. Ne5 {[%emt 0:03:10]} Bh6 {[%emt 0:03:37]} 8. f3 {[%emt 0:02:18]} Be6 {[%emt 0:08:46]} 9. Nb3 {[%emt 0:08:22]} Bxc1 {[%emt 0:00:34]} 10. Kxc1 {[%emt 0:00:10]} Nfd7 $146 {[%emt 0:05:49]} (10... Bxb3 11. axb3 Nbd7 12. Nc4 Kd8 13. b4 Kc7 14. c3 Ne8 15. Ne3 Nd6 16. Bd3 a6 17. Kc2 e5 18. Rhd1 Rad8 19. Rd2 Rhe8 20. Rad1 Nf8 21. g3 h5 22. h4 {1-0 Gurel,E (2500)-Arat,U (2389) TUR-chT Ankara 2023 (8.5)}) 11. Nxd7 {[%emt 0:02:50]} Nxd7 {[%emt 0:03:26][%cal Bb8d7,Bd7f8,Bf8e6][%mdl 32]} 12. Nd4 {[%emt 0:00:30]} Nf8 {[%emt 0:00:29]} 13. Nxe6 {[%emt 0:04:09]} Nxe6 {[%emt 0:00:02]} 14. Bc4 {[%emt 0:00:06]} Nc7 {[%emt 0:03:28]} 15. Rd1 {[%emt 0:04:48]} e6 {[%emt 0:00:21]} 16. Kd2 {[%emt 0:07:03]} Rd8+ {[%emt 0:01:05]} 17. Ke3 {[%emt 0:00:10]} Ke7 {[%emt 0:00:15]} 18. Rd3 {[%emt 0:11:25]} e5 {[%emt 0:23:38]} 19. g3 {[%emt 0:06:33]} Rxd3+ {[%emt 0:04:44]} 20. cxd3 $11 {[%emt 0:02:21][%mdl 4096] Endgame KRB-KRN} Ne6 {[%emt 0:00:10]} 21. f4 {[%emt 0:01:07]} f6 {[%emt 0:00:03]} 22. Rf1 {[%emt 0:07:45]} a5 {[%emt 0:05:39]} 23. h4 {[%emt 0:02:23]} b5 {[%emt 0:05:03]} 24. Bxe6 {[%emt 0:08:26]} Kxe6 {[%emt 0:00:02] KR-KR} 25. Rc1 {[%emt 0:00:08]} Rc8 {[%emt 0:04:59]} 26. Rc5 {[%emt 0:04:41]} Kd6 {[%emt 0:03:39]} 27. d4 {[%emt 0:00:47]} Re8 {[%emt 0:00:40] [#]} 28. fxe5+ {[%emt 0:09:41]} fxe5 {[%emt 0:00:13] The position is equal.} 29. Rc2 {[%emt 0:00:08]} exd4+ {[%emt 0:06:21]} 30. Kxd4 {[%emt 0:00:02]} c5+ {[%emt 0:01:42]} 31. Ke3 {[%emt 0:04:08]} Rf8 {[%emt 0:14:47]} 32. Rd2+ {[%emt 0:00:38]} Kc6 {[%emt 0:00:30]} 33. e5 {[%emt 0:01:05]} c4 {[%emt 0:00:17]} 34. Rd6+ {[%emt 0:02:42]} Kc5 {[%emt 0:00:01]} 35. Rd7 {[%emt 0:00:05]} Rf1 {[%emt 0:01:37]} 36. Rxh7 {[%emt 0:04:06]} Rb1 {[%emt 0:00:54]} 37. Rd7 {[%emt 0:04:39]} b4 {[%emt 0:02:05]} 38. e6 {[%emt 0:00:29] [#]} Re1+ {[%emt 0:00:10]} (38... Rxb2 $2 39. e7 Rb1 40. Ke2 $18 (40. e8=R $2 Re1+ 41. Kd2 Rxe8 $19) (40. Rc7+ Kd6 $18)) 39. Kd2 {[%emt 0:00:31]} Rxe6 {[%emt 0:00:01]} 40. Ra7 {[%emt 0:00:29]} Kb6 {[%emt 0:00:40]} 41. Rg7 {[%emt 0:00:16]} Kc5 {[%emt 0:01:21]} 42. g4 {[%emt 0:00:09]} a4 {[%emt 0:00:48]} 43. h5 {[%emt 0:00:35]} gxh5 {[%emt 0:00:30]} 44. gxh5 {[%emt 0:00:02]} Rd6+ {[%emt 0:00:56]} 45. Kc1 {[%emt 0:00:39]} Rd5 {[%emt 0:01:29] Prevents Rg5} 46. h6 {[%emt 0:00:04]} Rh5 {[%emt 0:00:10]} 47. h7 {[%emt 0:00:03][%cal Og7g5] aiming for Rg5+!.} Rh1+ {[%emt 0:00:16]} 48. Kd2 {[%emt 0:00:03]} Rh2+ {[%emt 0:00:21]} 49. Ke3 {[%emt 0:00:19]} a3 {[%emt 0:00:36]} 50. bxa3 {[%emt 0:02:01]} bxa3 {[%emt 0:00:10]} 51. Rc7+ {[%emt 0:01:20]} Kb4 {[%emt 0:00:13]} 52. Kd4 {[%emt 0:00:16]} Rd2+ {[%emt 0:01:26]} 53. Ke5 {[%emt 0:00:07]} Rh2 {[%emt 0:00:07]} 54. Kf6 {[%emt 0:01:05]} Kc3 {[%emt 0:01:21][%cal Oc3b2] White must now prevent ...Kb2!.} 55. Kg7 {[%emt 0:00:22]} Kb2 {[%emt 0:00:37]} 56. Rxc4 {[%emt 0:00:14]} (56. h8=R Rxh8 57. Kxh8 c3 58. Rb7+ Kxa2 $19) (56. h8=B $2 {loses.} c3 57. Rb7+ Kxa2 $19) 56... Rxh7+ {[%emt 0:00:11]} 57. Kxh7 {[%emt 0:00:05]} Kxa2 {[%emt 0:00:02] An interesting draw.   Weighted Error Value: White=0.02 (flawless) /Black=0.01 (flawless)   Inaccurate:     	White=1     	---        OK:         	White=20    	Black=24     Best:        	---       	Black=2} 1/2-1/2